Workbook

Sheet Entrate
B1: COMUNE DI NONANTOLA (MO)
A2: Prospetto di cui all'articolo 8, comma 1, del Decreto Legge 24 aprile 2014, n. 66
A4: Entrate
B5: DATI PREVISIONALI ANNO | C5: 2019
A7: Titolo Tipologia | B7: Denominazione | C7: COMPETENZA | D7: CASSA
B8: Fondo pluriennale vincolato per spese correnti | C8: 0
B9: Fondo pluriennale vincolato per spese in conto capitale | C9: 1108904.45
B10: Utilizzo Risultato di Amministrazione | C10: 517000
B11: Fondo di Cassa all'1/1/esercizio di riferimento | D11: 5422758.8
A13: TITOLO 1 | B13: Entrate correnti di natura tributaria, contributiva e perequativa
A14: 10101 | B14: Tipologia 101: Imposte, tasse e proventi assimilati | C14: 7508219 | D14: 9522486.54
A15: 10102 | B15: Tipologia 102: Tributi destinati al finanziamento della sanità | C15: 0 | D15: 0
A16: 10103 | B16: Tipologia 103: Tributi devoluti e regolati alle autonomie speciali | C16: 0 | D16: 0
A17: 10104 | B17: Tipologia 104: Compartecipazioni di tributi | C17: 10000 | D17: 9000
A18: 10301 | B18: Tipologia 301: Fondi perequativi da Amministrazioni Centrali | C18: 2053000 | D18: 1847700
A19: 10302 | B19: Tipologia 302: Fondi perequativi dalla Regione o Provincia autonoma | C19: 0 | D19: 0
A20: 10000 | B20: TOTALE TITOLO 1: Entrate correnti di natura tributaria, contributiva e perequativa | C20: =SUM(C14:C19) -> 9571219 | D20: =SUM(D14:D19) -> 11379186.54
A22: TITOLO 2 | B22: Trasferimenti correnti
A23: 20101 | B23: Tipologia 101: Trasferimenti correnti da Amministrazioni pubbliche | C23: 597267 | D23: 578612.98
A24: 20102 | B24: Tipologia 102: Trasferimenti correnti da Famiglie | C24: 0 | D24: 0
A25: 20103 | B25: Tipologia 103: Trasferimenti correnti da Imprese | C25: 3500 | D25: 3150
A26: 20104 | B26: Tipologia 104: Trasferimenti correnti da Istituzioni Sociali Private | C26: 0 | D26: 0
A27: 20105 | B27: Tipologia 105: Trasferimenti correnti dall'Unione europea e dal Resto del Mondo | C27: 0 | D27: 0
A28: 20000 | B28: TOTALE TITOLO 2: Trasferimenti correnti | C28: =SUM(C23:C27) -> 600767 | D28: =SUM(D23:D27) -> 581762.98
A30: TITOLO 3 | B30: Entrate extratributarie
A31: 30100 | B31: Tipologia 100: Vendita di beni e servizi e proventi derivanti dalla gestione dei beni | C31: 1477971 | D31: 1775849.79
A32: 30200 | B32: Tipologia 200: Proventi derivanti dall'attività di controllo e repressione delle irregolarità e degli illeciti | C32: 30000 | D32: 27000
A33: 30300 | B33: Tipologia 300: Interessi attivi | C33: 1 | D33: 0.9
A34: 30400 | B34: Tipologia 400: Altre entrate da redditi da capitale | C34: 117000 | D34: 105300
A35: 30500 | B35: Tipologia 500: Rimborsi e altre entrate correnti | C35: 378716 | D35: 702071.82
A36: 30000 | B36: TOTALE TITOLO 3: Entrate extratributarie | C36: =SUM(C31:C35) -> 2003688 | D36: =SUM(D31:D35) -> 2610222.51
A38: TITOLO 4 | B38: Entrate in conto capitale
A39: 40100 | B39: Tipologia 100: Tributi in conto capitale | C39: 0 | D39: 0
A40: 40200 | B40: Tipologia 200: Contributi agli investimenti | C40: 1153831.18 | D40: 1335273.75
A41: 40300 | B41: Tipologia 300: Altri trasferimenti in conto capitale | C41: 0 | D41: 0
A42: 40400 | B42: Tipologia 400: Entrate da alienazione di beni materiali e immateriali | C42: 15000 | D42: 13500
A43: 40500 | B43: Tipologia 500: Altre entrate in conto capitale | C43: 450000 | D43: 405000
A44: 40000 | B44: TOTALE TITOLO 4: Entrate in conto capitale | C44: =SUM(C39:C43) -> 1618831.18 | D44: =SUM(D39:D43) -> 1753773.75
A46: TITOLO 5 | B46: Entrate da riduzione di attività finanziarie
A47: 50100 | B47: Tipologia 100: Alienazione di attività finanziarie | C47: 0 | D47: 0
A48: 50200 | B48: Tipologia 200: Riscossione di crediti di breve termine | C48: 0 | D48: 0
A49: 50300 | B49: Tipologia 300: Riscossione crediti di medio-lungo termine | C49: 0 | D49: 0
A50: 50400 | B50: Tipologia 400: Altre entrate per riduzione di attività finanziarie | C50: 0 | D50: 0
A51: 50000 | B51: TOTALE TITOLO 5: Entrate da riduzione di attività finanziarie | C51: =SUM(C47:C50) -> 0 | D51: =SUM(D47:D50) -> 0
A53: TITOLO 6 | B53: Accensione prestiti
A54: 60100 | B54: Tipologia 100: Alienazione di attività finanziarie | C54: 0 | D54: 0
A55: 60200 | B55: Tipologia 200: Riscossione di crediti di breve termine | C55: 0 | D55: 0
A56: 60300 | B56: Tipologia 300: Riscossione crediti di medio-lungo termine | C56: 0 | D56: 0
A57: 60400 | B57: Tipologia 400: Altre entrate per riduzione di attività finanziarie | C57: 0 | D57: 0
A58: 60000 | B58: TOTALE TITOLO 6: Accensione prestiti | C58: =SUM(C54:C57) -> 0 | D58: =SUM(D54:D57) -> 0
A60: TITOLO 7 | B60: Anticipazioni da istituto tesoriere/cassiere
A61: 70100 | B61: Tipologia 100: Anticipazioni da istituto tesoriere/cassiere | C61: 3184735 | D61: 0
A62: 70000 | B62: TOTALE TITOLO 7: Anticipazioni da istituto tesoriere/cassiere | C62: =SUM(C61) -> 3184735 | D62: =SUM(D61) -> 0
A64: TITOLO 9 | B64: Entrate per conto terzi e partite di giro
A65: 90100 | B65: Tipologia 100: Entrate per partite di giro | C65: 1655000 | D65: 1857520.15
A66: 90200 | B66: Tipologia 200: Entrate per conto terzi | C66: 1285000 | D66: 1232066.11
A67: 90000 | B67: TOTALE TITOLO 9: Entrate per conto terzi e partite di giro | C67: =SUM(C65:C66) -> 2940000 | D67: =SUM(D65:D66) -> 3089586.26
B68: TOTALE TITOLI | C68: =+C20+C28+C36+C44+C51+C58+C62+C67 -> 19919240.18 | D68: =+D20+D28+D36+D44+D51+D58+D62+D67 -> 19414532.04
B69: TOTALE GENERALE DELLE ENTRATE | C69: =+C68+C8+C9+C10 -> 21545144.63 | D69: =+D68+D11 -> 24837290.84

Sheet Spese
C3: Prospetto di cui all'articolo 8, comma 1, del Decreto Legge 24 aprile 2014, n. 66
B4: Spese missioni
C5: DATI PREVISIONALI ANNO | D5: =Entrate!C5 -> 2019
B7: TITOLI E MACROAGGREGATI DI SPESA/ MISSIONI | C7: 1 | F7: 2 | I7: 3 | L7: 4 | O7: 5 | R7: 6 | U7: 7 | X7: 8 | AA7: 9 | AD7: 10 | AG7: 11 | AJ7: 12 | AM7: 13 | AP7: 14 | AS7: 15 | AV7: 16 | AY7: 17 | BB7: 18 | BE7: 19 | BH7: 20 | BK7: 50 | BN7: 60 | BQ7: 99 | BT7: Ripiano disavanzo | BU7: Totale generale delle spese
C8: Servizi istituzionali, generali e di gestione | F8: Giustizia | I8: Ordine pubblico e sicurezza | L8: Istruzione e diritto allo studio | O8: Tutela e valorizzazione dei beni e delle attività culturali | R8: Politiche giovanili, sport e tempo libero | U8: Turismo | X8: Assetto del territorio ed edilizia abitativa | AA8: Sviluppo sostenibile e tutela del territorio e dell'ambiente | AD8: Trasporti e diritto alla mobilità | AG8: Soccorso civile | AJ8: Diritti sociali, politiche sociali e famiglia | AM8: Tutela della salute | AP8: Sviluppo economico e competitività | AS8: Politiche per il lavoro e la formazione professionale | AV8: Agricoltura, politiche agroalimentari e pesca | AY8: Energia e diversificazione delle fonti energetiche | BB8: Relazioni con le altre autonomie territoriali e locali | BE8: Relazioni internazionali | BH8: Fondi e accantonamenti | BK8: Debito pubblico | BN8: Anticipazioni finanziarie | BQ8: Servizi per conto terzi
C9: Competenza | E9: Cassa | F9: Competenza | H9: Cassa | I9: Competenza | K9: Cassa | L9: Competenza | N9: Cassa | O9: Competenza | Q9: Cassa | R9: Competenza | T9: Cassa | U9: Competenza | W9: Cassa | X9: Competenza | Z9: Cassa | AA9: Competenza | AC9: Cassa | AD9: Competenza | AF9: Cassa | AG9: Competenza | AI9: Cassa | AJ9: Competenza | AL9: Cassa | AM9: Competenza | AO9: Cassa | AP9: Competenza | AR9: Cassa | AS9: Competenza | AU9: Cassa | AV9: Competenza | AX9: Cassa | AY9: Competenza | BA9: Cassa | BB9: Competenza | BD9: Cassa | BE9: Competenza | BG9: Cassa | BH9: Competenza | BJ9: Cassa | BK9: Competenza | BM9: Cassa | BN9: Competenza | BP9: Cassa | BQ9: Competenza | BS9: Cassa | BT9: Competenza | BU9: Competenza | BW9: Cassa
D10: di cui fondo pluriennale vincolato | G10: di cui fondo pluriennale vincolato | J10: di cui fondo pluriennale vincolato | M10: di cui fondo pluriennale vincolato | P10: di cui fondo pluriennale vincolato | S10: di cui fondo pluriennale vincolato | V10: di cui fondo pluriennale vincolato | Y10: di cui fondo pluriennale vincolato | AB10: di cui fondo pluriennale vincolato | AE10: di cui fondo pluriennale vincolato | AH10: di cui fondo pluriennale vincolato | AK10: di cui fondo pluriennale vincolato | AN10: di cui fondo pluriennale vincolato | AQ10: di cui fondo pluriennale vincolato | AT10: di cui fondo pluriennale vincolato | AW10: di cui fondo pluriennale vincolato | AZ10: di cui fondo pluriennale vincolato | BC10: di cui fondo pluriennale vincolato | BF10: di cui fondo pluriennale vincolato | BI10: di cui fondo pluriennale vincolato | BL10: di cui fondo pluriennale vincolato | BO10: di cui fondo pluriennale vincolato | BR10: di cui fondo pluriennale vincolato | BV10: di cui fondo pluriennale vincolato
B12: RIPIANO DISAVANZO NELL'ESERCIZIO | BT12: 0 | BU12: 0
B14: TITOLO 1 - Spese correnti
A15: 101 | B15: Redditi da lavoro dipendente | C15: 874910 | D15: 0 | E15: 1102551.89 | F15: 0 | G15: 0 | H15: 0 | I15: 0 | J15: 0 | K15: 0 | L15: 159200 | M15: 0 | N15: 188725.79 | O15: 219838 | P15: 0 | Q15: 245833.68 | R15: 0 | S15: 0 | T15: 0 | U15: 55372 | V15: 0 | W15: 60115.98 | X15: 387743 | Y15: 0 | Z15: 432942.08 | AA15: 60125 | AB15: 0 | AC15: 70967.07 | AD15: 0 | AE15: 0 | AF15: 0 | AG15: 0 | AH15: 0 | AI15: 3517.61 | AJ15: 193804 | AK15: 0 | AL15: 228561.97 | AM15: 0 | AN15: 0 | AO15: 0 | AP15: 0 | AQ15: 0 | AR15: 0 | AS15: 10051 | AT15: 0 | AU15: 10604.87 | AV15: 0 | AW15: 0 | AX15: 0 | AY15: 0 | AZ15: 0 | BA15: 0 | BB15: 0 | BC15: 0 | BD15: 0 | BE15: 0 | BF15: 0 | BG15: 0 | BH15: 0 | BI15: 0 | BJ15: 0 | BK15: 0 | BL15: 0 | BM15: 0 | BN15: 0 | BO15: 0 | BP15: 0 | BQ15: 0 | BR15: 0 | BS15: 0 | BU15: =+C15+F15+I15+L15+O15+R15+U15+X15+AA15+AD15+AG15+AJ15+AM15+AP15+AS15+AV15+AY15+BB15+BE15+BH15+BK15+BN15+BQ15 -> 1961043 | BV15: =+D15+G15+J15+M15+P15+S15+V15+Y15+AB15+AE15+AH15+AK15+AN15+AQ15+AT15+AW15+AZ15+BC15+BF15+BI15+BL15+BO15+BR15 -> 0 | BW15: 2343820.94
A16: =A15 + 1 -> 102 | B16: Imposte e tasse a carico dell'ente | C16: 113819 | D16: 0 | E16: 148837.55 | F16: 0 | G16: 0 | H16: 0 | I16: 0 | J16: 0 | K16: 0 | L16: 9481 | M16: 0 | N16: 9407.69 | O16: 14544 | P16: 0 | Q16: 16295.05 | R16: 0 | S16: 0 | T16: 0 | U16: 3673 | V16: 0 | W16: 4164.12 | X16: 15804 | Y16: 0 | Z16: 16924.12 | AA16: 4789 | AB16: 0 | AC16: 5708.14 | AD16: 0 | AE16: 0 | AF16: 0 | AG16: 0 | AH16: 0 | AI16: 6.53 | AJ16: 0 | AK16: 0 | AL16: 0 | AM16: 0 | AN16: 0 | AO16: 0 | AP16: 0 | AQ16: 0 | AR16: 0 | AS16: 100 | AT16: 0 | AU16: 95 | AV16: 0 | AW16: 0 | AX16: 0 | AY16: 0 | AZ16: 0 | BA16: 0 | BB16: 0 | BC16: 0 | BD16: 0 | BE16: 0 | BF16: 0 | BG16: 0 | BH16: 0 | BI16: 0 | BJ16: 0 | BK16: 0 | BL16: 0 | BM16: 0 | BN16: 0 | BO16: 0 | BP16: 0 | BQ16: 0 | BR16: 0 | BS16: 0 | BU16: =+C16+F16+I16+L16+O16+R16+U16+X16+AA16+AD16+AG16+AJ16+AM16+AP16+AS16+AV16+AY16+BB16+BE16+BH16+BK16+BN16+BQ16 -> 162210 | BV16: 0 | BW16: 201438.2
A17: =A16 + 1 -> 103 | B17: Acquisto di beni e servizi | C17: 730896 | D17: 0 | E17: 1000951.78 | F17: 0 | G17: 0 | H17: 0 | I17: 2000 | J17: 0 | K17: 1900 | L17: 1154860 | M17: 0 | N17: 1570971.36 | O17: 400602 | P17: 0 | Q17: 518249.31 | R17: 0 | S17: 0 | T17: 0 | U17: 9100 | V17: 0 | W17: 8735 | X17: 15000 | Y17: 0 | Z17: 58488.27 | AA17: 2503725 | AB17: 0 | AC17: 2808449.78 | AD17: 664301 | AE17: 0 | AF17: 1008636.85 | AG17: 223140 | AH17: 0 | AI17: 235122.15 | AJ17: 471826.4 | AK17: 0 | AL17: 614784.43 | AM17: 0 | AN17: 0 | AO17: 0 | AP17: 1000 | AQ17: 0 | AR17: 1447.85 | AS17: 6000 | AT17: 0 | AU17: 11242.35 | AV17: 0 | AW17: 0 | AX17: 0 | AY17: 0 | AZ17: 0 | BA17: 0 | BB17: 0 | BC17: 0 | BD17: 0 | BE17: 0 | BF17: 0 | BG17: 0 | BH17: 0 | BI17: 0 | BJ17: 0 | BK17: 0 | BL17: 0 | BM17: 0 | BN17: 0 | BO17: 0 | BP17: 0 | BQ17: 0 | BR17: 0 | BS17: 0 | BU17: 6182450.4 | BV17: 0 | BW17: 7838979.13
A18: 104 | B18: Trasferimenti correnti | C18: 903825 | D18: 0 | E18: 1056999.15 | F18: 0 | G18: 0 | H18: 0 | I18: 331327 | J18: 0 | K18: 319327.51 | L18: 291200 | M18: 0 | N18: 302506.59 | O18: 87000 | P18: 0 | Q18: 138006.84 | R18: 10000 | S18: 0 | T18: 9500 | U18: 0 | V18: 0 | W18: 0 | X18: 0 | Y18: 0 | Z18: 0 | AA18: 16000 | AB18: 0 | AC18: 15200 | AD18: 17000 | AE18: 0 | AF18: 22588.14 | AG18: 2398 | AH18: 0 | AI18: 3172.96 | AJ18: 1235058.37 | AK18: 0 | AL18: 2087828.46 | AM18: 0 | AN18: 0 | AO18: 0 | AP18: 67105 | AQ18: 0 | AR18: 63749.75 | AS18: 0 | AT18: 0 | AU18: 0 | AV18: 0 | AW18: 0 | AX18: 0 | AY18: 0 | AZ18: 0 | BA18: 8100 | BB18: 54510 | BC18: 0 | BD18: 51784.5 | BE18: 0 | BF18: 0 | BG18: 0 | BH18: 0 | BI18: 0 | BJ18: 0 | BK18: 0 | BL18: 0 | BM18: 0 | BN18: 0 | BO18: 0 | BP18: 0 | BQ18: 0 | BR18: 0 | BS18: 0 | BU18: 3015423.37 | BV18: 0 | BW18: 4078763.9
A19: 105 | B19: Trasferimenti di tributi | C19: 0 | D19: 0 | E19: 0 | F19: 0 | G19: 0 | H19: 0 | I19: 0 | J19: 0 | K19: 0 | L19: 0 | M19: 0 | N19: 0 | O19: 0 | P19: 0 | Q19: 0 | R19: 0 | S19: 0 | T19: 0 | U19: 0 | V19: 0 | W19: 0 | X19: 0 | Y19: 0 | Z19: 0 | AA19: 0 | AB19: 0 | AC19: 0 | AD19: 0 | AE19: 0 | AF19: 0 | AG19: 0 | AH19: 0 | AI19: 0 | AJ19: 0 | AK19: 0 | AL19: 0 | AM19: 0 | AN19: 0 | AO19: 0 | AP19: 0 | AQ19: 0 | AR19: 0 | AS19: 0 | AT19: 0 | AU19: 0 | AV19: 0 | AW19: 0 | AX19: 0 | AY19: 0 | AZ19: 0 | BA19: 0 | BB19: 0 | BC19: 0 | BD19: 0 | BE19: 0 | BF19: 0 | BG19: 0 | BH19: 0 | BI19: 0 | BJ19: 0 | BK19: 0 | BL19: 0 | BM19: 0 | BN19: 0 | BO19: 0 | BP19: 0 | BQ19: 0 | BR19: 0 | BS19: 0 | BU19: 0 | BV19: 0 | BW19: 0
A20: 106 | B20: Fondi perequativi | C20: 0 | D20: 0 | E20: 0 | F20: 0 | G20: 0 | H20: 0 | I20: 0 | J20: 0 | K20: 0 | L20: 0 | M20: 0 | N20: 0 | O20: 0 | P20: 0 | Q20: 0 | R20: 0 | S20: 0 | T20: 0 | U20: 0 | V20: 0 | W20: 0 | X20: 0 | Y20: 0 | Z20: 0 | AA20: 0 | AB20: 0 | AC20: 0 | AD20: 0 | AE20: 0 | AF20: 0 | AG20: 0 | AH20: 0 | AI20: 0 | AJ20: 0 | AK20: 0 | AL20: 0 | AM20: 0 | AN20: 0 | AO20: 0 | AP20: 0 | AQ20: 0 | AR20: 0 | AS20: 0 | AT20: 0 | AU20: 0 | AV20: 0 | AW20: 0 | AX20: 0 | AY20: 0 | AZ20: 0 | BA20: 0 | BB20: 0 | BC20: 0 | BD20: 0 | BE20: 0 | BF20: 0 | BG20: 0 | BH20: 0 | BI20: 0 | BJ20: 0 | BK20: 0 | BL20: 0 | BM20: 0 | BN20: 0 | BO20: 0 | BP20: 0 | BQ20: 0 | BR20: 0 | BS20: 0 | BU20: 0 | BV20: 0 | BW20: 0
A21: 107 | B21: Interessi passivi | C21: 1100 | D21: 0 | E21: 1045 | F21: 0 | G21: 0 | H21: 0 | I21: 0 | J21: 0 | K21: 0 | L21: 0 | M21: 0 | N21: 0 | O21: 4260 | P21: 0 | Q21: 4047 | R21: 0 | S21: 0 | T21: 0 | U21: 0 | V21: 0 | W21: 0 | X21: 0 | Y21: 0 | Z21: 0 | AA21: 0 | AB21: 0 | AC21: 0 | AD21: 1110 | AE21: 0 | AF21: 1054.5 | AG21: 0 | AH21: 0 | AI21: 0 | AJ21: 1340 | AK21: 0 | AL21: 1273 | AM21: 0 | AN21: 0 | AO21: 0 | AP21: 0 | AQ21: 0 | AR21: 0 | AS21: 0 | AT21: 0 | AU21: 0 | AV21: 0 | AW21: 0 | AX21: 0 | AY21: 0 | AZ21: 0 | BA21: 0 | BB21: 0 | BC21: 0 | BD21: 0 | BE21: 0 | BF21: 0 | BG21: 0 | BH21: 0 | BI21: 0 | BJ21: 0 | BK21: 0 | BL21: 0 | BM21: 0 | BN21: 0 | BO21: 0 | BP21: 0 | BQ21: 0 | BR21: 0 | BS21: 0 | BU21: 7810 | BV21: 0 | BW21: 7419.5
A22: 108 | B22: Altre spese per redditi da capitale | C22: 0 | D22: 0 | E22: 0 | F22: 0 | G22: 0 | H22: 0 | I22: 0 | J22: 0 | K22: 0 | L22: 0 | M22: 0 | N22: 0 | O22: 0 | P22: 0 | Q22: 0 | R22: 0 | S22: 0 | T22: 0 | U22: 0 | V22: 0 | W22: 0 | X22: 0 | Y22: 0 | Z22: 0 | AA22: 0 | AB22: 0 | AC22: 0 | AD22: 0 | AE22: 0 | AF22: 0 | AG22: 0 | AH22: 0 | AI22: 0 | AJ22: 0 | AK22: 0 | AL22: 0 | AM22: 0 | AN22: 0 | AO22: 0 | AP22: 0 | AQ22: 0 | AR22: 0 | AS22: 0 | AT22: 0 | AU22: 0 | AV22: 0 | AW22: 0 | AX22: 0 | AY22: 0 | AZ22: 0 | BA22: 0 | BB22: 0 | BC22: 0 | BD22: 0 | BE22: 0 | BF22: 0 | BG22: 0 | BH22: 0 | BI22: 0 | BJ22: 0 | BK22: 0 | BL22: 0 | BM22: 0 | BN22: 0 | BO22: 0 | BP22: 0 | BQ22: 0 | BR22: 0 | BS22: 0 | BU22: 0 | BV22: 0 | BW22: 0
A23: 109 | B23: Rimborsi e poste correttive delle entrate | C23: 79000 | D23: 0 | E23: 145324.38 | F23: 0 | G23: 0 | H23: 0 | I23: 0 | J23: 0 | K23: 0 | L23: 48885 | M23: 0 | N23: 46440.82 | O23: 0 | P23: 0 | Q23: 0 | R23: 0 | S23: 0 | T23: 0 | U23: 0 | V23: 0 | W23: 0 | X23: 0 | Y23: 0 | Z23: 0 | AA23: 0 | AB23: 0 | AC23: 0 | AD23: 0 | AE23: 0 | AF23: 0 | AG23: 0 | AH23: 0 | AI23: 0 | AJ23: 500 | AK23: 0 | AL23: 583 | AM23: 0 | AN23: 0 | AO23: 0 | AP23: 0 | AQ23: 0 | AR23: 0 | AS23: 0 | AT23: 0 | AU23: 0 | AV23: 0 | AW23: 0 | AX23: 0 | AY23: 0 | AZ23: 0 | BA23: 102624.48 | BB23: 0 | BC23: 0 | BD23: 0 | BE23: 0 | BF23: 0 | BG23: 0 | BH23: 0 | BI23: 0 | BJ23: 0 | BK23: 0 | BL23: 0 | BM23: 0 | BN23: 0 | BO23: 0 | BP23: 0 | BQ23: 0 | BR23: 0 | BS23: 0 | BU23: 128385 | BV23: 0 | BW23: 294972.68
A24: 110 | B24: Altre spese correnti | C24: 176750 | D24: 0 | E24: 223051.33 | F24: 0 | G24: 0 | H24: 0 | I24: 0 | J24: 0 | K24: 0 | L24: 0 | M24: 0 | N24: 0 | O24: 0 | P24: 0 | Q24: 128.11 | R24: 0 | S24: 0 | T24: 0 | U24: 0 | V24: 0 | W24: 0 | X24: 0 | Y24: 0 | Z24: 0 | AA24: 0 | AB24: 0 | AC24: 0 | AD24: 0 | AE24: 0 | AF24: 0 | AG24: 0 | AH24: 0 | AI24: 0 | AJ24: 0 | AK24: 0 | AL24: 0 | AM24: 0 | AN24: 0 | AO24: 0 | AP24: 0 | AQ24: 0 | AR24: 0 | AS24: 0 | AT24: 0 | AU24: 0 | AV24: 0 | AW24: 0 | AX24: 0 | AY24: 0 | AZ24: 0 | BA24: 0 | BB24: 0 | BC24: 0 | BD24: 0 | BE24: 0 | BF24: 0 | BG24: 0 | BH24: 255766.23 | BI24: 0 | BJ24: 900000 | BK24: 0 | BL24: 0 | BM24: 0 | BN24: 0 | BO24: 0 | BP24: 0 | BQ24: 0 | BR24: 0 | BS24: 0 | BU24: 432516.23 | BV24: 0 | BW24: 1123179.44
A25: 100 | B25: TOTALE TITOLO 1 | C25: =SUM(C15:C24) -> 2880300 | D25: 0 | E25: 3678761.08 | F25: 0 | G25: 0 | H25: 0 | I25: 333327 | J25: 0 | K25: 321227.51 | L25: 1663626 | M25: 0 | N25: 2118052.25 | O25: 726244 | P25: 0 | Q25: 922559.99 | R25: 10000 | S25: 0 | T25: 9500 | U25: 68145 | V25: 0 | W25: 73015.1 | X25: 418547 | Y25: 0 | Z25: 508354.47 | AA25: 2584639 | AB25: 0 | AC25: 2900324.99 | AD25: 682411 | AE25: 0 | AF25: 1032279.49 | AG25: 225538 | AH25: 0 | AI25: 241819.25 | AJ25: 1902528.77 | AK25: 0 | AL25: 2933030.86 | AM25: 0 | AN25: 0 | AO25: 0 | AP25: 68105 | AQ25: 0 | AR25: 65197.6 | AS25: 16151 | AT25: 0 | AU25: 21942.22 | AV25: 0 | AW25: 0 | AX25: 0 | AY25: 0 | AZ25: 0 | BA25: 110724.48 | BB25: 54510 | BC25: 0 | BD25: 51784.5 | BE25: 0 | BF25: 0 | BG25: 0 | BH25: 255766.23 | BI25: 0 | BJ25: 900000 | BK25: 0 | BL25: 0 | BM25: 0 | BN25: 0 | BO25: =SUM(BO15:BO24) -> 0 | BP25: 0 | BQ25: 0 | BR25: 0 | BS25: 0 | BU25: 11889838 | BV25: 0 | BW25: 15888573.79
B27: TITOLO 2 - Spese in conto capitale
A28: 201 | B28: Tributi in conto capitale a carico dell'ente | C28: 0 | D28: 0 | E28: 0 | F28: 0 | G28: 0 | H28: 0 | I28: 0 | J28: 0 | K28: 0 | L28: 0 | M28: 0 | N28: 0 | O28: 0 | P28: 0 | Q28: 0 | R28: 0 | S28: 0 | T28: 0 | U28: 0 | V28: 0 | W28: 0 | X28: 0 | Y28: 0 | Z28: 0 | AA28: 0 | AB28: 0 | AC28: 0 | AD28: 0 | AE28: 0 | AF28: 0 | AG28: 0 | AH28: 0 | AI28: 0 | AJ28: 0 | AK28: 0 | AL28: 0 | AM28: 0 | AN28: 0 | AO28: 0 | AP28: 0 | AQ28: 0 | AR28: 0 | AS28: 0 | AT28: 0 | AU28: 0 | AV28: 0 | AW28: 0 | AX28: 0 | AY28: 0 | AZ28: 0 | BA28: 0 | BB28: 0 | BC28: 0 | BD28: 0 | BE28: 0 | BF28: 0 | BG28: 0 | BH28: 0 | BI28: 0 | BJ28: 0 | BK28: 0 | BL28: 0 | BM28: 0 | BN28: 0 | BO28: 0 | BP28: 0 | BQ28: 0 | BR28: 0 | BS28: 0 | BU28: =+C28+F28+I28+L28+O28+R28+U28+X28+AA28+AD28+AG28+AJ28+AM28+AP28+AS28+AV28+AY28+BB28+BE28+BH28+BK28+BN28+BQ28 -> 0 | BV28: =+D28+G28+J28+M28+P28+S28+V28+Y28+AB28+AE28+AH28+AK28+AN28+AQ28+AT28+AW28+AZ28+BC28+BF28+BI28+BL28+BO28+BR28 -> 0 | BW28: 0
A29: =A28 + 1 -> 202 | B29: Investimenti fissi lordi e acquisto di terreni | C29: 8000 | D29: 0 | E29: 36806.8 | F29: 0 | G29: 0 | H29: 0 | I29: 0 | J29: 0 | K29: 0 | L29: 137564.96 | M29: 0 | N29: 145444.54 | O29: 0 | P29: 0 | Q29: 65742.3 | R29: 0 | S29: 0 | T29: 0 | U29: 0 | V29: 0 | W29: 0 | X29: 20000 | Y29: 0 | Z29: 455746.45 | AA29: 0 | AB29: 0 | AC29: 124230.88 | AD29: 357000 | AE29: 0 | AF29: 503850 | AG29: 1308409.55 | AH29: 0 | AI29: 349671.51 | AJ29: 428500 | AK29: 0 | AL29: 446675 | AM29: 0 | AN29: 0 | AO29: 0 | AP29: 0 | AQ29: 0 | AR29: 0 | AS29: 0 | AT29: 0 | AU29: 0 | AV29: 0 | AW29: 0 | AX29: 0 | AY29: 0 | AZ29: 0 | BA29: 0 | BB29: 0 | BC29: 0 | BD29: 0 | BE29: 0 | BF29: 0 | BG29: 0 | BH29: 0 | BI29: 0 | BJ29: 0 | BK29: 0 | BL29: 0 | BM29: 0 | BN29: 0 | BO29: 0 | BP29: 0 | BQ29: 0 | BR29: 0 | BS29: 0 | BU29: =+C29+F29+I29+L29+O29+R29+U29+X29+AA29+AD29+AG29+AJ29+AM29+AP29+AS29+AV29+AY29+BB29+BE29+BH29+BK29+BN29+BQ29 -> 2259474.51 | BV29: 0 | BW29: 2128167.48
A30: =A29 + 1 -> 203 | B30: Contributi agli investimenti | C30: 0 | D30: 0 | E30: 0 | F30: 0 | G30: 0 | H30: 0 | I30: 0 | J30: 0 | K30: 0 | L30: 0 | M30: 0 | N30: 0 | O30: 0 | P30: 0 | Q30: 0 | R30: 0 | S30: 0 | T30: 0 | U30: 0 | V30: 0 | W30: 0 | X30: 0 | Y30: 0 | Z30: 0 | AA30: 12100 | AB30: 0 | AC30: 11495 | AD30: 0 | AE30: 0 | AF30: 0 | AG30: 433975 | AH30: 0 | AI30: 950392.23 | AJ30: 0 | AK30: 0 | AL30: 482.88 | AM30: 0 | AN30: 0 | AO30: 0 | AP30: 0 | AQ30: 0 | AR30: 0 | AS30: 0 | AT30: 0 | AU30: 0 | AV30: 0 | AW30: 0 | AX30: 0 | AY30: 0 | AZ30: 0 | BA30: 0 | BB30: 0 | BC30: 0 | BD30: 0 | BE30: 0 | BF30: 0 | BG30: 0 | BH30: 0 | BI30: 0 | BJ30: 0 | BK30: 0 | BL30: 0 | BM30: 0 | BN30: 0 | BO30: 0 | BP30: 0 | BQ30: 0 | BR30: 0 | BS30: 0 | BU30: =+C30+F30+I30+L30+O30+R30+U30+X30+AA30+AD30+AG30+AJ30+AM30+AP30+AS30+AV30+AY30+BB30+BE30+BH30+BK30+BN30+BQ30 -> 446075 | BV30: 0 | BW30: 962370.11
A31: =A30 + 1 -> 204 | B31: Altri trasferimenti in conto capitale | C31: 0 | D31: 0 | E31: 0 | F31: 0 | G31: 0 | H31: 0 | I31: 0 | J31: 0 | K31: 0 | L31: 0 | M31: 0 | N31: 0 | O31: 0 | P31: 0 | Q31: 0 | R31: 0 | S31: 0 | T31: 0 | U31: 0 | V31: 0 | W31: 0 | X31: 0 | Y31: 0 | Z31: 0 | AA31: 0 | AB31: 0 | AC31: 0 | AD31: 0 | AE31: 0 | AF31: 0 | AG31: 0 | AH31: 0 | AI31: 0 | AJ31: 0 | AK31: 0 | AL31: 0 | AM31: 0 | AN31: 0 | AO31: 0 | AP31: 0 | AQ31: 0 | AR31: 0 | AS31: 0 | AT31: 0 | AU31: 0 | AV31: 0 | AW31: 0 | AX31: 0 | AY31: 0 | AZ31: 0 | BA31: 0 | BB31: 0 | BC31: 0 | BD31: 0 | BE31: 0 | BF31: 0 | BG31: 0 | BH31: 0 | BI31: 0 | BJ31: 0 | BK31: 0 | BL31: 0 | BM31: 0 | BN31: 0 | BO31: 0 | BP31: 0 | BQ31: 0 | BR31: 0 | BS31: 0 | BU31: =+C31+F31+I31+L31+O31+R31+U31+X31+AA31+AD31+AG31+AJ31+AM31+AP31+AS31+AV31+AY31+BB31+BE31+BH31+BK31+BN31+BQ31 -> 0 | BV31: 0 | BW31: 0
A32: =A31 + 1 -> 205 | B32: Altre spese in conto capitale | C32: 0 | D32: 0 | E32: 0 | F32: 0 | G32: 0 | H32: 0 | I32: 0 | J32: 0 | K32: 0 | L32: 0 | M32: 0 | N32: 0 | O32: 0 | P32: 0 | Q32: 0 | R32: 0 | S32: 0 | T32: 0 | U32: 0 | V32: 0 | W32: 0 | X32: 0 | Y32: 0 | Z32: 0 | AA32: 0 | AB32: 0 | AC32: 0 | AD32: 0 | AE32: 0 | AF32: 0 | AG32: 607542.12 | AH32: 607542.12 | AI32: 0 | AJ32: 0 | AK32: 0 | AL32: 0 | AM32: 0 | AN32: 0 | AO32: 0 | AP32: 0 | AQ32: 0 | AR32: 0 | AS32: 0 | AT32: 0 | AU32: 0 | AV32: 0 | AW32: 0 | AX32: 0 | AY32: 0 | AZ32: 0 | BA32: 0 | BB32: 0 | BC32: 0 | BD32: 0 | BE32: 0 | BF32: 0 | BG32: 0 | BH32: 0 | BI32: 0 | BJ32: 0 | BK32: 0 | BL32: 0 | BM32: 0 | BN32: 0 | BO32: 0 | BP32: 0 | BQ32: 0 | BR32: 0 | BS32: 0 | BU32: =+C32+F32+I32+L32+O32+R32+U32+X32+AA32+AD32+AG32+AJ32+AM32+AP32+AS32+AV32+AY32+BB32+BE32+BH32+BK32+BN32+BQ32 -> 607542.12 | BV32: 607542.12 | BW32: 0
A33: 200 | B33: TOTALE TITOLO 2 | C33: =SUM(C28:C32) -> 8000 | D33: 0 | E33: 36806.8 | F33: 0 | G33: 0 | H33: 0 | I33: 0 | J33: 0 | K33: 0 | L33: 137564.96 | M33: 0 | N33: 145444.54 | O33: 0 | P33: 0 | Q33: 65742.3 | R33: 0 | S33: 0 | T33: 0 | U33: 0 | V33: 0 | W33: 0 | X33: 20000 | Y33: 0 | Z33: 455746.45 | AA33: 12100 | AB33: 0 | AC33: 135725.88 | AD33: 357000 | AE33: 0 | AF33: 503850 | AG33: 2349926.67 | AH33: 607542.12 | AI33: 1300063.74 | AJ33: 428500 | AK33: 0 | AL33: 447157.88 | AM33: 0 | AN33: 0 | AO33: 0 | AP33: 0 | AQ33: 0 | AR33: 0 | AS33: 0 | AT33: 0 | AU33: 0 | AV33: 0 | AW33: 0 | AX33: 0 | AY33: 0 | AZ33: 0 | BA33: 0 | BB33: 0 | BC33: 0 | BD33: 0 | BE33: 0 | BF33: 0 | BG33: 0 | BH33: 0 | BI33: 0 | BJ33: 0 | BK33: 0 | BL33: 0 | BM33: 0 | BN33: 0 | BO33: =SUM(BO28:BO32) -> 0 | BP33: 0 | BQ33: 0 | BR33: 0 | BS33: 0 | BU33: 3313091.63 | BV33: 607542.12 | BW33: 3090537.59
B35: TITOLO 3 - Spese per incremento di attività finanziarie
A36: 301 | B36: Acquisizioni di attività finanziarie | C36: 0 | D36: 0 | E36: 0 | F36: 0 | G36: 0 | H36: 0 | I36: 0 | J36: 0 | K36: 0 | L36: 0 | M36: 0 | N36: 0 | O36: 0 | P36: 0 | Q36: 0 | R36: 0 | S36: 0 | T36: 0 | U36: 0 | V36: 0 | W36: 0 | X36: 0 | Y36: 0 | Z36: 0 | AA36: 0 | AB36: 0 | AC36: 0 | AD36: 0 | AE36: 0 | AF36: 0 | AG36: 0 | AH36: 0 | AI36: 0 | AJ36: 0 | AK36: 0 | AL36: 0 | AM36: 0 | AN36: 0 | AO36: 0 | AP36: 0 | AQ36: 0 | AR36: 0 | AS36: 0 | AT36: 0 | AU36: 0 | AV36: 0 | AW36: 0 | AX36: 0 | AY36: 0 | AZ36: 0 | BA36: 0 | BB36: 0 | BC36: 0 | BD36: 0 | BE36: 0 | BF36: 0 | BG36: 0 | BH36: 0 | BI36: 0 | BJ36: 0 | BK36: 0 | BL36: 0 | BM36: 0 | BN36: 0 | BO36: 0 | BP36: 0 | BQ36: 0 | BR36: 0 | BS36: 0 | BU36: =+C36+F36+I36+L36+O36+R36+U36+X36+AA36+AD36+AG36+AJ36+AM36+AP36+AS36+AV36+AY36+BB36+BE36+BH36+BK36+BN36+BQ36 -> 0 | BV36: =+D36+G36+J36+M36+P36+S36+V36+Y36+AB36+AE36+AH36+AK36+AN36+AQ36+AT36+AW36+AZ36+BC36+BF36+BI36+BL36+BO36+BR36 -> 0 | BW36: 0
A37: =A36 + 1 -> 302 | B37: Concessione crediti di breve termine | C37: 0 | D37: 0 | E37: 0 | F37: 0 | G37: 0 | H37: 0 | I37: 0 | J37: 0 | K37: 0 | L37: 0 | M37: 0 | N37: 0 | O37: 0 | P37: 0 | Q37: 0 | R37: 0 | S37: 0 | T37: 0 | U37: 0 | V37: 0 | W37: 0 | X37: 0 | Y37: 0 | Z37: 0 | AA37: 0 | AB37: 0 | AC37: 0 | AD37: 0 | AE37: 0 | AF37: 0 | AG37: 0 | AH37: 0 | AI37: 0 | AJ37: 0 | AK37: 0 | AL37: 0 | AM37: 0 | AN37: 0 | AO37: 0 | AP37: 0 | AQ37: 0 | AR37: 0 | AS37: 0 | AT37: 0 | AU37: 0 | AV37: 0 | AW37: 0 | AX37: 0 | AY37: 0 | AZ37: 0 | BA37: 0 | BB37: 0 | BC37: 0 | BD37: 0 | BE37: 0 | BF37: 0 | BG37: 0 | BH37: 0 | BI37: 0 | BJ37: 0 | BK37: 0 | BL37: 0 | BM37: 0 | BN37: 0 | BO37: 0 | BP37: 0 | BQ37: 0 | BR37: 0 | BS37: 0 | BU37: =+C37+F37+I37+L37+O37+R37+U37+X37+AA37+AD37+AG37+AJ37+AM37+AP37+AS37+AV37+AY37+BB37+BE37+BH37+BK37+BN37+BQ37 -> 0 | BV37: 0 | BW37: 0
A38: =A37 + 1 -> 303 | B38: Concessione crediti di medio-lungo termine | C38: 0 | D38: 0 | E38: 0 | F38: 0 | G38: 0 | H38: 0 | I38: 0 | J38: 0 | K38: 0 | L38: 0 | M38: 0 | N38: 0 | O38: 0 | P38: 0 | Q38: 0 | R38: 0 | S38: 0 | T38: 0 | U38: 0 | V38: 0 | W38: 0 | X38: 0 | Y38: 0 | Z38: 0 | AA38: 0 | AB38: 0 | AC38: 0 | AD38: 0 | AE38: 0 | AF38: 0 | AG38: 0 | AH38: 0 | AI38: 0 | AJ38: 0 | AK38: 0 | AL38: 0 | AM38: 0 | AN38: 0 | AO38: 0 | AP38: 0 | AQ38: 0 | AR38: 0 | AS38: 0 | AT38: 0 | AU38: 0 | AV38: 0 | AW38: 0 | AX38: 0 | AY38: 0 | AZ38: 0 | BA38: 0 | BB38: 0 | BC38: 0 | BD38: 0 | BE38: 0 | BF38: 0 | BG38: 0 | BH38: 0 | BI38: 0 | BJ38: 0 | BK38: 0 | BL38: 0 | BM38: 0 | BN38: 0 | BO38: 0 | BP38: 0 | BQ38: 0 | BR38: 0 | BS38: 0 | BU38: =+C38+F38+I38+L38+O38+R38+U38+X38+AA38+AD38+AG38+AJ38+AM38+AP38+AS38+AV38+AY38+BB38+BE38+BH38+BK38+BN38+BQ38 -> 0 | BV38: 0 | BW38: 0
A39: =A38 + 1 -> 304 | B39: Altre spese per incremento di attività finanziarie | C39: 0 | D39: 0 | E39: 0 | F39: 0 | G39: 0 | H39: 0 | I39: 0 | J39: 0 | K39: 0 | L39: 0 | M39: 0 | N39: 0 | O39: 0 | P39: 0 | Q39: 0 | R39: 0 | S39: 0 | T39: 0 | U39: 0 | V39: 0 | W39: 0 | X39: 0 | Y39: 0 | Z39: 0 | AA39: 0 | AB39: 0 | AC39: 0 | AD39: 0 | AE39: 0 | AF39: 0 | AG39: 0 | AH39: 0 | AI39: 0 | AJ39: 0 | AK39: 0 | AL39: 0 | AM39: 0 | AN39: 0 | AO39: 0 | AP39: 0 | AQ39: 0 | AR39: 0 | AS39: 0 | AT39: 0 | AU39: 0 | AV39: 0 | AW39: 0 | AX39: 0 | AY39: 0 | AZ39: 0 | BA39: 0 | BB39: 0 | BC39: 0 | BD39: 0 | BE39: 0 | BF39: 0 | BG39: 0 | BH39: 0 | BI39: 0 | BJ39: 0 | BK39: 0 | BL39: 0 | BM39: 0 | BN39: 0 | BO39: 0 | BP39: 0 | BQ39: 0 | BR39: 0 | BS39: 0 | BU39: =+C39+F39+I39+L39+O39+R39+U39+X39+AA39+AD39+AG39+AJ39+AM39+AP39+AS39+AV39+AY39+BB39+BE39+BH39+BK39+BN39+BQ39 -> 0 | BV39: 0 | BW39: 0
A40: 300 | B40: TOTALE TITOLO 3 | C40: =SUM(C36:C39) -> 0 | D40: 0 | E40: 0 | F40: 0 | G40: 0 | H40: 0 | I40: 0 | J40: 0 | K40: 0 | L40: 0 | M40: 0 | N40: 0 | O40: 0 | P40: 0 | Q40: 0 | R40: 0 | S40: 0 | T40: 0 | U40: 0 | V40: 0 | W40: 0 | X40: 0 | Y40: 0 | Z40: 0 | AA40: 0 | AB40: 0 | AC40: 0 | AD40: 0 | AE40: 0 | AF40: 0 | AG40: 0 | AH40: 0 | AI40: 0 | AJ40: 0 | AK40: 0 | AL40: 0 | AM40: 0 | AN40: 0 | AO40: 0 | AP40: 0 | AQ40: 0 | AR40: 0 | AS40: 0 | AT40: 0 | AU40: 0 | AV40: 0 | AW40: 0 | AX40: 0 | AY40: 0 | AZ40: 0 | BA40: 0 | BB40: 0 | BC40: 0 | BD40: 0 | BE40: 0 | BF40: 0 | BG40: 0 | BH40: 0 | BI40: 0 | BJ40: 0 | BK40: 0 | BL40: 0 | BM40: 0 | BN40: 0 | BO40: =SUM(BO36:BO39) -> 0 | BP40: 0 | BQ40: 0 | BR40: 0 | BS40: 0 | BU40: 0 | BV40: 0 | BW40: 0
B42: TITOLO 4 - Rimborso di prestiti
A43: 401 | B43: Rimborso di titoli obbligazionari | C43: 0 | D43: 0 | E43: 0 | F43: 0 | G43: 0 | H43: 0 | I43: 0 | J43: 0 | K43: 0 | L43: 0 | M43: 0 | N43: 0 | O43: 0 | P43: 0 | Q43: 0 | R43: 0 | S43: 0 | T43: 0 | U43: 0 | V43: 0 | W43: 0 | X43: 0 | Y43: 0 | Z43: 0 | AA43: 0 | AB43: 0 | AC43: 0 | AD43: 0 | AE43: 0 | AF43: 0 | AG43: 0 | AH43: 0 | AI43: 0 | AJ43: 0 | AK43: 0 | AL43: 0 | AM43: 0 | AN43: 0 | AO43: 0 | AP43: 0 | AQ43: 0 | AR43: 0 | AS43: 0 | AT43: 0 | AU43: 0 | AV43: 0 | AW43: 0 | AX43: 0 | AY43: 0 | AZ43: 0 | BA43: 0 | BB43: 0 | BC43: 0 | BD43: 0 | BE43: 0 | BF43: 0 | BG43: 0 | BH43: 0 | BI43: 0 | BJ43: 0 | BK43: 0 | BL43: 0 | BM43: 0 | BN43: 0 | BO43: 0 | BP43: 0 | BQ43: 0 | BR43: 0 | BS43: 0 | BU43: =+C43+F43+I43+L43+O43+R43+U43+X43+AA43+AD43+AG43+AJ43+AM43+AP43+AS43+AV43+AY43+BB43+BE43+BH43+BK43+BN43+BQ43 -> 0 | BV43: 0 | BW43: 0
A44: =A43 + 1 -> 402 | B44: Rimborso prestiti a breve termine | C44: 0 | D44: 0 | E44: 0 | F44: 0 | G44: 0 | H44: 0 | I44: 0 | J44: 0 | K44: 0 | L44: 0 | M44: 0 | N44: 0 | O44: 0 | P44: 0 | Q44: 0 | R44: 0 | S44: 0 | T44: 0 | U44: 0 | V44: 0 | W44: 0 | X44: 0 | Y44: 0 | Z44: 0 | AA44: 0 | AB44: 0 | AC44: 0 | AD44: 0 | AE44: 0 | AF44: 0 | AG44: 0 | AH44: 0 | AI44: 0 | AJ44: 0 | AK44: 0 | AL44: 0 | AM44: 0 | AN44: 0 | AO44: 0 | AP44: 0 | AQ44: 0 | AR44: 0 | AS44: 0 | AT44: 0 | AU44: 0 | AV44: 0 | AW44: 0 | AX44: 0 | AY44: 0 | AZ44: 0 | BA44: 0 | BB44: 0 | BC44: 0 | BD44: 0 | BE44: 0 | BF44: 0 | BG44: 0 | BH44: 0 | BI44: 0 | BJ44: 0 | BK44: 0 | BL44: 0 | BM44: 0 | BN44: 0 | BO44: 0 | BP44: 0 | BQ44: 0 | BR44: 0 | BS44: 0 | BU44: 0 | BV44: 0 | BW44: 0
A45: =A44 + 1 -> 403 | B45: Rimborso mutui e altri finanziamenti a medio lungo termine | C45: 0 | D45: 0 | E45: 0 | F45: 0 | G45: 0 | H45: 0 | I45: 0 | J45: 0 | K45: 0 | L45: 0 | M45: 0 | N45: 0 | O45: 0 | P45: 0 | Q45: 0 | R45: 0 | S45: 0 | T45: 0 | U45: 0 | V45: 0 | W45: 0 | X45: 0 | Y45: 0 | Z45: 0 | AA45: 0 | AB45: 0 | AC45: 0 | AD45: 0 | AE45: 0 | AF45: 0 | AG45: 0 | AH45: 0 | AI45: 0 | AJ45: 0 | AK45: 0 | AL45: 0 | AM45: 0 | AN45: 0 | AO45: 0 | AP45: 0 | AQ45: 0 | AR45: 0 | AS45: 0 | AT45: 0 | AU45: 0 | AV45: 0 | AW45: 0 | AX45: 0 | AY45: 0 | AZ45: 0 | BA45: 0 | BB45: 0 | BC45: 0 | BD45: 0 | BE45: 0 | BF45: 0 | BG45: 0 | BH45: 0 | BI45: 0 | BJ45: 0 | BK45: 217480 | BL45: 0 | BM45: 217480 | BN45: 0 | BO45: 0 | BP45: 0 | BQ45: 0 | BR45: 0 | BS45: 0 | BU45: 217480 | BV45: 0 | BW45: 217480
A46: =A45 + 1 -> 404 | B46: Rimborso di altre forme di indebitamento | C46: 0 | D46: 0 | E46: 0 | F46: 0 | G46: 0 | H46: 0 | I46: 0 | J46: 0 | K46: 0 | L46: 0 | M46: 0 | N46: 0 | O46: 0 | P46: 0 | Q46: 0 | R46: 0 | S46: 0 | T46: 0 | U46: 0 | V46: 0 | W46: 0 | X46: 0 | Y46: 0 | Z46: 0 | AA46: 0 | AB46: 0 | AC46: 0 | AD46: 0 | AE46: 0 | AF46: 0 | AG46: 0 | AH46: 0 | AI46: 0 | AJ46: 0 | AK46: 0 | AL46: 0 | AM46: 0 | AN46: 0 | AO46: 0 | AP46: 0 | AQ46: 0 | AR46: 0 | AS46: 0 | AT46: 0 | AU46: 0 | AV46: 0 | AW46: 0 | AX46: 0 | AY46: 0 | AZ46: 0 | BA46: 0 | BB46: 0 | BC46: 0 | BD46: 0 | BE46: 0 | BF46: 0 | BG46: 0 | BH46: 0 | BI46: 0 | BJ46: 0 | BK46: 0 | BL46: 0 | BM46: 0 | BN46: 0 | BO46: 0 | BP46: 0 | BQ46: 0 | BR46: 0 | BS46: 0 | BU46: 0 | BV46: 0 | BW46: 0
A47: 400 | B47: TOTALE TITOLO 4 | C47: =SUM(C43:C46) -> 0 | D47: 0 | E47: 0 | F47: 0 | G47: 0 | H47: 0 | I47: 0 | J47: 0 | K47: 0 | L47: 0 | M47: 0 | N47: 0 | O47: 0 | P47: 0 | Q47: 0 | R47: 0 | S47: 0 | T47: 0 | U47: 0 | V47: 0 | W47: 0 | X47: 0 | Y47: 0 | Z47: 0 | AA47: 0 | AB47: 0 | AC47: 0 | AD47: 0 | AE47: 0 | AF47: 0 | AG47: 0 | AH47: 0 | AI47: 0 | AJ47: 0 | AK47: 0 | AL47: 0 | AM47: 0 | AN47: 0 | AO47: 0 | AP47: 0 | AQ47: 0 | AR47: 0 | AS47: 0 | AT47: 0 | AU47: 0 | AV47: 0 | AW47: 0 | AX47: 0 | AY47: 0 | AZ47: 0 | BA47: 0 | BB47: 0 | BC47: 0 | BD47: 0 | BE47: 0 | BF47: 0 | BG47: 0 | BH47: 0 | BI47: 0 | BJ47: 0 | BK47: 217480 | BL47: 0 | BM47: 217480 | BN47: 0 | BO47: =SUM(BO43:BO46) -> 0 | BP47: 0 | BQ47: 0 | BR47: 0 | BS47: 0 | BU47: 217480 | BV47: 0 | BW47: 217480
B49: TITOLO 5 - Chiusura Anticipazioni ricevute da istituto
A50: 501 | B50: Chiusura Anticipazioni ricevute da istituto tesoriere/cassiere | C50: 0 | D50: 0 | E50: 0 | F50: 0 | G50: 0 | H50: 0 | I50: 0 | J50: 0 | K50: 0 | L50: 0 | M50: 0 | N50: 0 | O50: 0 | P50: 0 | Q50: 0 | R50: 0 | S50: 0 | T50: 0 | U50: 0 | V50: 0 | W50: 0 | X50: 0 | Y50: 0 | Z50: 0 | AA50: 0 | AB50: 0 | AC50: 0 | AD50: 0 | AE50: 0 | AF50: 0 | AG50: 0 | AH50: 0 | AI50: 0 | AJ50: 0 | AK50: 0 | AL50: 0 | AM50: 0 | AN50: 0 | AO50: 0 | AP50: 0 | AQ50: 0 | AR50: 0 | AS50: 0 | AT50: 0 | AU50: 0 | AV50: 0 | AW50: 0 | AX50: 0 | AY50: 0 | AZ50: 0 | BA50: 0 | BB50: 0 | BC50: 0 | BD50: 0 | BE50: 0 | BF50: 0 | BG50: 0 | BH50: 0 | BI50: 0 | BJ50: 0 | BK50: 0 | BL50: 0 | BM50: 0 | BN50: 3184735 | BO50: 0 | BP50: 0 | BQ50: 0 | BR50: 0 | BS50: 0 | BU50: =+C50+F50+I50+L50+O50+R50+U50+X50+AA50+AD50+AG50+AJ50+AM50+AP50+AS50+AV50+AY50+BB50+BE50+BH50+BK50+BN50+BQ50 -> 3184735 | BV50: =+D50+G50+J50+M50+P50+S50+V50+Y50+AB50+AE50+AH50+AK50+AN50+AQ50+AT50+AW50+AZ50+BC50+BF50+BI50+BL50+BO50+BR50 -> 0 | BW50: =+E50+H50+K50+N50+Q50+T50+W50+Z50+AC50+AF50+AI50+AL50+AO50+AR50+AU50+AX50+BA50+BD50+BG50+BJ50+BM50+BP50+BS50 -> 0
A51: 500 | B51: TOTALE TITOLO 5 | C51: =SUM(C50) -> 0 | D51: 0 | E51: 0 | F51: 0 | G51: 0 | H51: 0 | I51: 0 | J51: 0 | K51: 0 | L51: 0 | M51: 0 | N51: 0 | O51: 0 | P51: 0 | Q51: 0 | R51: 0 | S51: 0 | T51: 0 | U51: 0 | V51: 0 | W51: 0 | X51: 0 | Y51: 0 | Z51: 0 | AA51: 0 | AB51: 0 | AC51: 0 | AD51: 0 | AE51: 0 | AF51: 0 | AG51: 0 | AH51: 0 | AI51: 0 | AJ51: 0 | AK51: 0 | AL51: 0 | AM51: 0 | AN51: 0 | AO51: 0 | AP51: 0 | AQ51: 0 | AR51: 0 | AS51: 0 | AT51: 0 | AU51: 0 | AV51: 0 | AW51: 0 | AX51: 0 | AY51: 0 | AZ51: 0 | BA51: 0 | BB51: 0 | BC51: 0 | BD51: 0 | BE51: 0 | BF51: 0 | BG51: 0 | BH51: 0 | BI51: 0 | BJ51: 0 | BK51: 0 | BL51: 0 | BM51: 0 | BN51: 3184735 | BO51: =SUM(BO50) -> 0 | BP51: 0 | BQ51: 0 | BR51: 0 | BS51: 0 | BU51: 3184735 | BV51: 0 | BW51: 0
B53: TITOLO 7 - Uscite per conto terzi e partite di giro
A54: 701 | B54: Uscite per partite di giro | C54: 0 | D54: 0 | E54: 0 | F54: 0 | G54: 0 | H54: 0 | I54: 0 | J54: 0 | K54: 0 | L54: 0 | M54: 0 | N54: 0 | O54: 0 | P54: 0 | Q54: 0 | R54: 0 | S54: 0 | T54: 0 | U54: 0 | V54: 0 | W54: 0 | X54: 0 | Y54: 0 | Z54: 0 | AA54: 0 | AB54: 0 | AC54: 0 | AD54: 0 | AE54: 0 | AF54: 0 | AG54: 0 | AH54: 0 | AI54: 0 | AJ54: 0 | AK54: 0 | AL54: 0 | AM54: 0 | AN54: 0 | AO54: 0 | AP54: 0 | AQ54: 0 | AR54: 0 | AS54: 0 | AT54: 0 | AU54: 0 | AV54: 0 | AW54: 0 | AX54: 0 | AY54: 0 | AZ54: 0 | BA54: 0 | BB54: 0 | BC54: 0 | BD54: 0 | BE54: 0 | BF54: 0 | BG54: 0 | BH54: 0 | BI54: 0 | BJ54: 0 | BK54: 0 | BL54: 0 | BM54: 0 | BN54: 0 | BO54: 0 | BP54: 0 | BQ54: 1655000 | BR54: 0 | BS54: 2151496.6 | BU54: =+C54+F54+I54+L54+O54+R54+U54+X54+AA54+AD54+AG54+AJ54+AM54+AP54+AS54+AV54+AY54+BB54+BE54+BH54+BK54+BN54+BQ54 -> 1655000 | BV54: 0 | BW54: 2151496.6
A55: =A54 + 1 -> 702 | B55: Uscite per conto terzi | C55: 0 | D55: 0 | E55: 0 | F55: 0 | G55: 0 | H55: 0 | I55: 0 | J55: 0 | K55: 0 | L55: 0 | M55: 0 | N55: 0 | O55: 0 | P55: 0 | Q55: 0 | R55: 0 | S55: 0 | T55: 0 | U55: 0 | V55: 0 | W55: 0 | X55: 0 | Y55: 0 | Z55: 0 | AA55: 0 | AB55: 0 | AC55: 0 | AD55: 0 | AE55: 0 | AF55: 0 | AG55: 0 | AH55: 0 | AI55: 0 | AJ55: 0 | AK55: 0 | AL55: 0 | AM55: 0 | AN55: 0 | AO55: 0 | AP55: 0 | AQ55: 0 | AR55: 0 | AS55: 0 | AT55: 0 | AU55: 0 | AV55: 0 | AW55: 0 | AX55: 0 | AY55: 0 | AZ55: 0 | BA55: 0 | BB55: 0 | BC55: 0 | BD55: 0 | BE55: 0 | BF55: 0 | BG55: 0 | BH55: 0 | BI55: 0 | BJ55: 0 | BK55: 0 | BL55: 0 | BM55: 0 | BN55: 0 | BO55: 0 | BP55: 0 | BQ55: 1285000 | BR55: 0 | BS55: 1508490.24 | BU55: 1285000 | BV55: 0 | BW55: 1508490.24
A56: 700 | B56: TOTALE TITOLO 7 | C56: =SUM(C54:C55) -> 0 | D56: 0 | E56: 0 | F56: 0 | G56: 0 | H56: 0 | I56: 0 | J56: 0 | K56: 0 | L56: 0 | M56: 0 | N56: 0 | O56: 0 | P56: 0 | Q56: 0 | R56: 0 | S56: 0 | T56: 0 | U56: 0 | V56: 0 | W56: 0 | X56: 0 | Y56: 0 | Z56: 0 | AA56: 0 | AB56: 0 | AC56: 0 | AD56: 0 | AE56: 0 | AF56: 0 | AG56: 0 | AH56: 0 | AI56: 0 | AJ56: 0 | AK56: 0 | AL56: 0 | AM56: 0 | AN56: 0 | AO56: 0 | AP56: 0 | AQ56: 0 | AR56: 0 | AS56: 0 | AT56: 0 | AU56: 0 | AV56: 0 | AW56: 0 | AX56: 0 | AY56: 0 | AZ56: 0 | BA56: 0 | BB56: 0 | BC56: 0 | BD56: 0 | BE56: 0 | BF56: 0 | BG56: 0 | BH56: 0 | BI56: 0 | BJ56: 0 | BK56: 0 | BL56: 0 | BM56: 0 | BN56: 0 | BO56: =SUM(BO54:BO55) -> 0 | BP56: 0 | BQ56: 2940000 | BR56: 0 | BS56: 3659986.84 | BU56: 2940000 | BV56: 0 | BW56: 3659986.84
B57: TOTALE MISSIONI - TOTALE GENERALE DELLE SPESE | C57: =+C25+C33+C40+C47+C51+C56 -> 2888300 | D57: 0 | E57: 3715567.88 | F57: 0 | G57: 0 | H57: 0 | I57: 333327 | J57: 0 | K57: 321227.51 | L57: 1801190.96 | M57: 0 | N57: 2263496.79 | O57: 726244 | P57: 0 | Q57: 988302.29 | R57: 10000 | S57: 0 | T57: 9500 | U57: 68145 | V57: 0 | W57: 73015.1 | X57: 438547 | Y57: 0 | Z57: 964100.92 | AA57: 2596739 | AB57: 0 | AC57: 3036050.87 | AD57: 1039411 | AE57: 0 | AF57: 1536129.49 | AG57: 2575464.67 | AH57: 607542.12 | AI57: 1541882.99 | AJ57: 2331028.77 | AK57: 0 | AL57: 3380188.74 | AM57: 0 | AN57: 0 | AO57: 0 | AP57: 68105 | AQ57: 0 | AR57: 65197.6 | AS57: 16151 | AT57: 0 | AU57: 21942.22 | AV57: 0 | AW57: 0 | AX57: 0 | AY57: 0 | AZ57: 0 | BA57: 110724.48 | BB57: 54510 | BC57: 0 | BD57: 51784.5 | BE57: 0 | BF57: 0 | BG57: 0 | BH57: 255766.23 | BI57: 0 | BJ57: 900000 | BK57: 217480 | BL57: 0 | BM57: 217480 | BN57: 3184735 | BO57: =+BO25+BO33+BO40+BO47+BO51+BO56 -> 0 | BP57: 0 | BQ57: 2940000 | BR57: 0 | BS57: 3659986.84 | BU57: =+BU12+BU25+BU33+BU40+BU47+BU51+BU56 -> 21545144.63 | BV57: 607542.12 | BW57: 22856578.22
